[Event "22nd OIBM 2018"]
[Site "Gmund am Tegernsee"]
[Date "2018.11.04"]
[Round "9"]
[White "Zude, Arno"]
[Black "Boehm, Juergen"]
[Result "1-0"]
[ECO "C18"]
[WhiteElo "2349"]
[BlackElo "2174"]
[Annotator "NA"]
[PlyCount "135"]
[EventDate "2018.10.27"]
[EventType "swiss"]
[EventCountry "GER"]
[SourceTitle "playchess.com"]
[Source "ChessBase"]
[SourceQuality "1"]
[TimeControl "40/5400+30:1800+30"]

1. e4 {[%emt 0:00:00]} e6 {[%emt 0:00:00]} 2. d4 {[%emt 0:00:00]} d5 {[%emt 0:00:00]} 3. Nc3 {[%emt 0:00:00]} Bb4 {[%emt 0:00:00]} 4. e5 {[%emt 0:00:01]} c5 {[%emt 0:00:00]} 5. a3 {[%emt 0:00:10]} Bxc3+ {[%emt 0:00:00]} 6. bxc3 {[%emt 0:00:09]} Ne7 {[%emt 0:00:03]} 7. Qg4 {[%emt 0:00:49]} cxd4 {[%emt 0:00:22] LiveBook: 455 Games} 8. cxd4 {[%emt 0:06:14]} Qc7 {[%emt 0:00:56]} 9. Bd2 {[%emt 0:01:36]} O-O {[%emt 0:16:56]} 10. Bd3 {[%emt 0:05:24]} f5 {[%emt 0:06:14]} (10... b6 $11 {hält das Gleichgewicht.}) 11. exf6 {[%emt 0:03:53]} Rxf6 $16 {[%emt 0:00:34]} 12. Qh5 {[%emt 0:00:17]} h6 {[%emt 0:03:15]} 13. Nf3 {[%emt 0:18:04]} Bd7 {[%emt 0:11:13]} 14. Ne5 {[%emt 0:10:51]} Nbc6 {[%emt 0:03:02]} 15. O-O {[%emt 0:09:07]} Be8 {[%emt 0:19:36]} 16. Qg4 {[%emt 0:03:26]} Nf5 {[%emt 0:10:16]} 17. Nxc6 {[%emt 0:02:00]} Bxc6 {[%emt 0:06:42]} 18. Bf4 {[%emt 0:01:40]} Qd7 {[%emt 0:01:47]} 19. Be5 {[%emt 0:00:10]} Rff8 {[%emt 0:00:55]} 20. Rab1 {[%emt 0:02:34]} a6 {[%emt 0:00:34]} 21. Rb6 {[%emt 0:03:48]} Bb5 {[%emt 0:02:26]} 22. Rb1 {[%emt 0:01:17]} Bc6 {[%emt 0:03:47]} 23. a4 {[%emt 0:01:16]} Rac8 {[%emt 0:01:59]} 24. a5 {[%emt 0:00:35]} Qf7 {[%emt 0:05:38]} 25. h3 {[%emt 0:05:11]} Rfd8 {[%emt 0:01:56]} 26. R1b3 {[%emt 0:04:18]} Bb5 {[%emt 0:03:23]} 27. Bxb5 {[%emt 0:01:26]} axb5 {[%emt 0:00:01]} 28. R3xb5 {[%emt 0:00:22]} Rd7 {[%emt 0:00:19]} 29. Qe2 {[%emt 0:02:50]} Rc4 {[%emt 0:00:09]} 30. Qd3 {[%emt 0:01:42]} Qe7 {[%emt 0:01:11]} 31. g4 {[%emt 0:04:23]} Nh4 {[%emt 0:00:01]} 32. Bg3 {[%emt 0:01:35]} Rxd4 {[%emt 0:00:10]} 33. Qe3 {[%emt 0:05:41]} Re4 {[%emt 0:01:09]} 34. Qc3 {[%emt 0:00:53]} Rc4 {[%emt 0:01:23]} 35. Qb3 {[%emt 0:00:39]} Qf6 {[%emt 0:00:30]} 36. Rxb7 {[%emt 0:02:23]} Rxb7 {[%emt 0:00:54]} 37. Rxb7 {[%emt 0:00:02]} Rc3 {[%emt 0:00:28]} 38. Qb4 {[%emt 0:02:27]} Nf3+ {[%emt 0:00:00]} 39. Kg2 {[%emt 0:01:24]} Ne1+ {[%emt 0:00:36]} 40. Kf1 {[%emt 0:00:19]} Nxc2 {[%emt 0:00:22]} 41. Qf4 {[%emt 0:06:10]} Ra3 {[%emt 0:15:54]} 42. Qb8+ {[%emt 0:07:51]} Kh7 {[%emt 0:00:09]} 43. Be5 {[%emt 0:00:14]} Ra1+ {[%emt 0:02:44]} 44. Bxa1 {[%emt 0:00:21]} Qxa1+ {[%emt 0:00:03]} 45. Rb1 {[%emt 0:00:12]} Qxa5 {[%emt 0:01:21]} 46. Qe5 {[%emt 0:01:07]} Qa3 {[%emt 0:07:04]} 47. Kg2 {[%emt 0:04:24]} Qd3 {[%emt 0:00:03]} 48. Rb7 {[%emt 0:05:02]} Qe4+ {[%emt 0:02:21]} 49. Qxe4+ {[%emt 0:00:07]} dxe4 {[%emt 0:00:02]} 50. Kg3 {[%emt 0:02:20]} e3 {[%emt 0:00:26]} 51. fxe3 {[%emt 0:00:05]} Nxe3 {[%emt 0:00:12]} 52. Re7 {[%emt 0:00:07]} Nd5 {[%emt 0:01:17]} 53. Rxe6 {[%emt 0:00:03]} Kg8 {[%emt 0:00:43]} 54. Rd6 {[%emt 0:00:16]} Ne7 {[%emt 0:00:30]} 55. Kf4 {[%emt 0:00:27]} Kf7 {[%emt 0:00:08]} 56. Ke5 {[%emt 0:01:20]} Ng6+ {[%emt 0:00:18]} 57. Ke4 {[%emt 0:00:01]} Nh4 {[%emt 0:00:46]} 58. Ra6 {[%emt 0:01:28]} Ng6 {[%emt 0:01:04]} 59. Kf5 {[%emt 0:00:27]} Nh4+ {[%emt 0:00:04]} 60. Kf4 {[%emt 0:00:07]} Ng6+ {[%emt 0:03:14]} 61. Kg3 {[%emt 0:00:02]} Ne7 {[%emt 0:00:22]} 62. h4 {[%emt 0:00:25]} Ng6 {[%emt 0:00:09]} 63. h5 {[%emt 0:00:17]} Ne7 {[%emt 0:00:24]} 64. Kf4 {[%emt 0:00:02]} g6 {[%emt 0:01:23]} 65. Ke5 {[%emt 0:01:02]} gxh5 {[%emt 0:00:28]} 66. gxh5 {[%emt 0:00:02]} Kg7 {[%emt 0:00:59]} 67. Ra7 {[%emt 0:00:24]} Kf7 {[%emt 0:00:22]} 68. Ke4 1-0

[Event "22nd OIBM 2018"]
[Site "Gmund am Tegernsee"]
[Date "2018.11.04"]
[Round "9"]
[White "Hacker, Jonas"]
[Black "Huber, Benedikt"]
[Result "1-0"]
[ECO "C11"]
[WhiteElo "2345"]
[BlackElo "2116"]
[Annotator "NA"]
[PlyCount "81"]
[EventDate "2018.10.27"]
[EventType "swiss"]
[EventCountry "GER"]
[SourceTitle "playchess.com"]
[Source "ChessBase"]
[SourceQuality "1"]
[TimeControl "40/5400+30:1800+30"]

1. e4 {[%emt 0:00:00]} e6 {[%emt 0:00:00]} 2. d4 {[%emt 0:00:00]} d5 {[%emt 0:00:15]} 3. Nc3 {[%emt 0:00:00]} Nf6 {[%emt 0:00:24]} 4. e5 {[%emt 0:00:00]} Nfd7 {[%emt 0:00:19]} 5. f4 {[%emt 0:00:00]} c5 {[%emt 0:00:18]} 6. Nf3 {[%emt 0:00:00]} Nc6 {[%emt 0:00:43]} 7. Be3 $11 {[%emt 0:00:00] LiveBook: 6487 Games} cxd4 {[%emt 0:00:55]} 8. Nxd4 {[%emt 0:00:23]} Qb6 {[%emt 0:01:02]} 9. Qd2 {[%emt 0:01:17]} Qxb2 {[%emt 0:00:07]} 10. Rb1 {[%emt 0:00:11]} Qa3 {[%emt 0:00:10]} 11. Bb5 {[%emt 0:01:53]} Nxd4 {[%emt 0:00:55]} 12. Bxd4 {[%emt 0:00:18]} Bb4 {[%emt 0:00:43]} 13. Rb3 {[%emt 0:03:22]} Qa5 {[%emt 0:00:25]} 14. a3 {[%emt 0:02:36]} Be7 {[%emt 0:00:07]} 15. f5 {[%emt 0:07:58]} exf5 {[%emt 0:01:01]} 16. Nxd5 {[%emt 0:12:52]} Qxd2+ {[%emt 0:00:29]} 17. Kxd2 {[%emt 0:00:01]} Bd8 {[%emt 0:00:21]} 18. c4 {[%emt 0:03:07]} a6 {[%emt 0:01:07]} 19. Bxd7+ {[%emt 0:13:21]} Bxd7 {[%emt 0:02:12]} 20. Rxb7 {[%emt 0:00:55]} h5 {[%emt 0:00:05]} 21. Rhb1 {[%emt 0:04:05]} Rc8 {[%emt 0:03:36]} 22. Kd3 {[%emt 0:11:33]} Rh6 {[%emt 0:02:59]} 23. Rb8 {[%emt 0:02:58]} Rhc6 {[%emt 0:04:31]} 24. Rxc8 {[%emt 0:00:41]} Bxc8 {[%emt 0:04:11]} 25. Rb8 {[%emt 0:02:49]} Kd7 {[%emt 0:02:19]} 26. Bb6 {[%emt 0:01:26]} Bxb6 {[%emt 0:16:54]} 27. Nxb6+ {[%emt 0:05:56]} Kc7 {[%emt 0:00:43]} 28. Rxc8+ {[%emt 0:00:10]} Kxb6 {[%emt 0:00:04]} 29. Rxc6+ {[%emt 0:02:09]} Kxc6 {[%emt 0:01:21]} 30. h4 {[%emt 0:00:09]} Kc5 {[%emt 0:00:10]} 31. g3 {[%emt 0:05:24]} a5 {[%emt 0:16:20]} 32. Kc3 {[%emt 0:01:37]} Kb6 {[%emt 0:16:26]} 33. Kd4 {[%emt 0:00:26]} Kc6 {[%emt 0:00:02]} 34. a4 {[%emt 0:02:47]} Kb6 {[%emt 0:04:15]} 35. Kd5 {[%emt 0:00:09]} Kc7 {[%emt 0:00:03]} 36. c5 {[%emt 0:00:27]} Kd7 {[%emt 0:00:19]} 37. c6+ {[%emt 0:01:46]} Kc7 {[%emt 0:00:10]} 38. Kc5 {[%emt 0:00:05]} g5 {[%emt 0:01:23]} 39. hxg5 {[%emt 0:00:54]} f4 {[%emt 0:00:06]} 40. gxf4 {[%emt 0:00:38]} h4 {[%emt 0:00:07]} 41. e6 {[%emt 0:30:11]} 1-0

[Event "22nd OIBM 2018"]
[Site "Gmund am Tegernsee"]
[Date "2018.11.04"]
[Round "9"]
[White "Rietze, Clemens"]
[Black "Nikanova, Ekaterina"]
[Result "1/2-1/2"]
[ECO "B06"]
[WhiteElo "2293"]
[BlackElo "2088"]
[Annotator "NA"]
[PlyCount "43"]
[EventDate "2018.10.27"]
[EventType "swiss"]
[EventCountry "GER"]
[SourceTitle "playchess.com"]
[Source "ChessBase"]
[SourceQuality "1"]
[TimeControl "40/5400+30:1800+30"]

1. d4 {[%emt 0:00:00]} d6 {[%emt 0:00:00]} 2. e4 {[%emt 0:00:00]} g6 {[%emt 0:00:16]} 3. Nc3 {[%emt 0:00:16]} Bg7 {[%emt 0:00:19]} 4. Be3 {[%emt 0:00:06]} Nd7 {[%emt 0:01:51]} 5. Qd2 {[%emt 0:00:44]} c6 {[%emt 0:04:22]} 6. f3 {[%emt 0:10:51]} Ngf6 {[%emt 0:10:03]} 7. Bd3 {[%emt 0:06:48]} e5 {[%emt 0:05:19]} 8. Nge2 {[%emt 0:03:12]} O-O {[%emt 0:03:45]} 9. O-O-O {[%emt 0:10:22]} b5 {[%emt 0:01:56]} 10. dxe5 {[%emt 0:02:11]} dxe5 {[%emt 0:03:55]} 11. Kb1 {[%emt 0:02:07]} a5 {[%emt 0:06:49]} 12. Nc1 {[%emt 0:05:15]} a4 {[%emt 0:04:02]} 13. a3 {[%emt 0:01:13]} Qe7 {[%emt 0:13:23]} 14. N3a2 {[%emt 0:03:21]} Bb7 {[%emt 0:06:31]} 15. c4 {[%emt 0:04:48]} bxc4 {[%emt 0:06:21]} 16. Bxc4 {[%emt 0:00:18]} Rfb8 {[%emt 0:00:59]} 17. Ka1 {[%emt 0:08:43]} Bf8 {[%emt 0:01:42]} 18. g4 {[%emt 0:07:21]} Nc5 {[%emt 0:04:56]} 19. Qc3 Nfd7 20. Nb4 Nb3+ 21. Kb1 c5 22. Nd5 1/2-1/2

[Event "22nd OIBM 2018"]
[Site "Gmund am Tegernsee"]
[Date "2018.11.04"]
[Round "9"]
[White "Imnadze, Nato"]
[Black "Gschwendtner, Klaus"]
[Result "1/2-1/2"]
[ECO "C71"]
[WhiteElo "2291"]
[BlackElo "2086"]
[Annotator "NA"]
[PlyCount "150"]
[EventDate "2018.10.27"]
[EventType "swiss"]
[EventCountry "GER"]
[SourceTitle "playchess.com"]
[Source "ChessBase"]
[SourceQuality "1"]
[TimeControl "40/5400+30:1800+30"]

1. e4 e5 2. Nf3 Nc6 3. Bb5 a6 4. Ba4 d6 5. d3 {[%emt 0:04:35]} b5 {[%emt 0:04:21]} 6. Bb3 {[%emt 0:00:02]} Na5 {[%emt 0:00:38]} 7. Nc3 {[%emt 0:05:26]} Nxb3 {[%emt 0:00:10]} 8. axb3 {[%emt 0:00:04]} Bb7 {[%emt 0:02:53]} 9. b4 {[%emt 0:04:47]} g6 {[%emt 0:08:52]} 10. O-O {[%emt 0:03:19]} Bg7 {[%emt 0:00:27]} 11. Bg5 f6 {[%emt 0:06:36]} 12. Be3 {[%emt 0:05:27]} Ne7 {[%emt 0:00:45]} 13. d4 {[%emt 0:02:29]} O-O {[%emt 0:06:33]} 14. dxe5 {[%emt 0:02:06]} fxe5 {[%emt 0:05:02]} 15. Ng5 {[%emt 0:07:36]} Qd7 {[%emt 0:02:20]} 16. Nd5 {[%emt 0:01:06]} Rac8 {[%emt 0:03:21]} 17. Qd3 {[%emt 0:07:20]} h6 {[%emt 0:01:53]} 18. Nxe7+ {[%emt 0:02:16]} Qxe7 {[%emt 0:00:12]} 19. Qb3+ {[%emt 0:01:59]} Kh8 {[%emt 0:00:26]} 20. Ne6 {[%emt 0:01:41]} Rf6 {[%emt 0:00:32]} 21. Nxg7 {[%emt 0:00:40]} Kxg7 {[%emt 0:00:01]} 22. Qd3 {[%emt 0:04:04]} Qe6 {[%emt 0:01:47]} 23. b3 {[%emt 0:08:12]} g5 {[%emt 0:01:39]} 24. f3 {[%emt 0:02:15]} Rcf8 {[%emt 0:02:43]} 25. c4 {[%emt 0:02:29]} bxc4 {[%emt 0:07:25]} 26. bxc4 {[%emt 0:00:20]} R8f7 {[%emt 0:00:12]} 27. b5 {[%emt 0:05:28]} axb5 {[%emt 0:01:27]} 28. cxb5 {[%emt 0:00:15]} d5 {[%emt 0:04:48]} 29. exd5 {[%emt 0:02:21]} Bxd5 {[%emt 0:00:13]} 30. Ra6 {[%emt 0:09:27]} Bc4 {[%emt 0:03:32]} 31. Qe4 {[%emt 0:05:03]} Qd5 {[%emt 0:01:36]} 32. Qxd5 {[%emt 0:00:28]} Bxd5 {[%emt 0:00:01]} 33. Rc1 {[%emt 0:00:01]} Rd7 {[%emt 0:02:02]} 34. Bf2 {[%emt 0:04:28]} Re6 {[%emt 0:09:56]} 35. Bg3 {[%emt 0:01:48]} Kf7 {[%emt 0:01:17]} 36. Rxe6 {[%emt 0:01:22]} Kxe6 {[%emt 0:00:00]} 37. Re1 {[%emt 0:00:22]} e4 {[%emt 0:00:00]} 38. fxe4 {[%emt 0:00:44]} Bc4 {[%emt 0:00:00]} 39. Rb1 {[%emt 0:03:35]} h5 {[%emt 0:02:02]} 40. h3 {[%emt 0:04:06]} h4 {[%emt 0:11:55]} 41. b6 {[%emt 0:13:11]} cxb6 {[%emt 0:00:44]} 42. Rxb6+ {[%emt 0:00:04]} Kf7 {[%emt 0:00:13]} 43. Bd6 {[%emt 0:01:33]} Ra7 {[%emt 0:02:55]} 44. Be5 {[%emt 0:03:37]} Be6 {[%emt 0:04:29]} 45. Rb2 {[%emt 0:04:48]} Ra1+ {[%emt 0:00:58]} 46. Kh2 {[%emt 0:00:18]} Ra5 {[%emt 0:06:46]} 47. Rb7+ {[%emt 0:00:34]} Kg6 {[%emt 0:01:36]} 48. Rg7+ {[%emt 0:00:49]} Kh6 {[%emt 0:00:01]} 49. Bf6 {[%emt 0:00:50]} Ra4 {[%emt 0:02:10]} 50. e5 {[%emt 0:02:12]} g4 {[%emt 0:00:34]} 51. hxg4 {[%emt 0:00:12]} Rxg4 {[%emt 0:01:16]} 52. Rxg4 {[%emt 0:04:50]} Bxg4 {[%emt 0:00:02]} 53. Bxh4 {[%emt 0:00:01]} Kg6 {[%emt 0:00:36]} 54. Kg3 {[%emt 0:00:11]} Bd7 {[%emt 0:02:10]} 55. Kf4 {[%emt 0:00:04]} Kh5 {[%emt 0:01:31]} 56. Bf6 {[%emt 0:00:33]} Be6 {[%emt 0:00:24]} 57. g3 {[%emt 0:00:46]} Kg6 {[%emt 0:01:43]} 58. g4 {[%emt 0:03:56]} Bd5 {[%emt 0:00:22]} 59. Bd8 {[%emt 0:00:28]} Be6 {[%emt 0:00:19]} 60. g5 {[%emt 0:00:54]} Bd5 {[%emt 0:00:50]} 61. Bf6 {[%emt 0:00:01]} Kf7 {[%emt 0:02:02]} 62. Kf5 {[%emt 0:00:34]} Be6+ {[%emt 0:00:01]} 63. Ke4 {[%emt 0:00:01]} Ba2 {[%emt 0:00:27]} 64. Kd4 {[%emt 0:00:09]} Be6 {[%emt 0:00:46]} 65. Kc5 {[%emt 0:00:01]} Bh3 {[%emt 0:00:17]} 66. Kd6 {[%emt 0:00:04]} Bf5 {[%emt 0:00:23]} 67. Bd8 {[%emt 0:01:56]} Bg4 {[%emt 0:00:21]} 68. Bb6 {[%emt 0:00:47]} Bf5 {[%emt 0:00:21]} 69. Kd5 {[%emt 0:00:44]} Be6+ {[%emt 0:00:17]} 70. Ke4 {[%emt 0:00:05]} Kg6 {[%emt 0:00:19]} 71. Bd8 {[%emt 0:00:33]} Bb3 {[%emt 0:00:06]} 72. Kd4 {[%emt 0:00:16]} Be6 {[%emt 0:00:11]} 73. Kc5 {[%emt 0:00:12]} Kf7 {[%emt 0:00:12]} 74. Bf6 {[%emt 0:00:08]} Bf5 {[%emt 0:00:07]} 75. Kd6 {[%emt 0:00:05]} Bg4 {[%emt 0:00:08]} 1/2-1/2

[Event "22nd OIBM 2018"]
[Site "Gmund am Tegernsee"]
[Date "2018.11.04"]
[Round "9"]
[White "Lipok, Christoph"]
[Black "Freundorfer, Josef"]
[Result "1-0"]
[ECO "A51"]
[WhiteElo "2271"]
[BlackElo "2114"]
[Annotator "NA"]
[PlyCount "63"]
[EventDate "2018.10.27"]
[EventType "swiss"]
[EventCountry "GER"]
[SourceTitle "playchess.com"]
[Source "ChessBase"]
[SourceQuality "1"]
[TimeControl "40/5400+30:1800+30"]

1. d4 {[%emt 0:00:00]} Nf6 {[%emt 0:00:00]} 2. c4 {[%emt 0:00:00]} e5 {[%emt 0:00:00]} 3. dxe5 {[%emt 0:00:00]} Ne4 {[%emt 0:00:00]} 4. a3 {[%emt 0:00:00]} d6 {[%emt 0:00:00]} 5. Nf3 {[%emt 0:01:47]} Nc6 {[%emt 0:00:15]} 6. Qc2 {[%emt 0:00:17]} d5 {[%emt 0:08:03]} 7. Nc3 {[%emt 0:02:36]} Nxc3 {[%emt 0:03:19]} 8. Qxc3 {[%emt 0:00:49]} d4 {[%emt 0:03:02]} 9. Qd3 {[%emt 0:02:52]} g6 {[%emt 0:15:33]} 10. Bg5 {[%emt 0:04:27]} Be7 {[%emt 0:00:33]} 11. Bf4 {[%emt 0:04:17]} a5 {[%emt 0:08:39]} 12. O-O-O {[%emt 0:06:32]} Bf5 {[%emt 0:03:30]} 13. e4 {[%emt 0:01:14]} Bg4 {[%emt 0:00:50]} 14. Be2 {[%emt 0:01:14]} Bxf3 {[%emt 0:01:11]} 15. Bxf3 {[%emt 0:01:00]} h5 {[%emt 0:15:26]} 16. e6 {[%emt 0:07:41]} g5 {[%emt 0:00:58]} 17. exf7+ {[%emt 0:00:51]} Kxf7 {[%emt 0:00:11]} 18. Bd2 {[%emt 0:10:55]} Ne5 {[%emt 0:00:20]} 19. Qb3 {[%emt 0:00:17]} c6 {[%emt 0:01:21]} 20. c5+ {[%emt 0:02:25]} Kf6 {[%emt 0:04:45]} 21. h4 {[%emt 0:03:29]} g4 {[%emt 0:04:10]} 22. Be2 {[%emt 0:03:47]} Qd7 {[%emt 0:02:49]} 23. Bg5+ {[%emt 0:04:41]} Kg7 {[%emt 0:01:05]} 24. f4 {[%emt 0:02:02]} gxf3 {[%emt 0:01:04]} 25. gxf3 {[%emt 0:00:07]} Bxg5+ {[%emt 0:00:50]} 26. hxg5 {[%emt 0:00:07]} Qe7 {[%emt 0:01:21]} 27. f4 {[%emt 0:01:46]} Nd7 {[%emt 0:04:30]} 28. Rxd4 {[%emt 0:03:03]} Nxc5 {[%emt 0:02:17]} 29. Qc3 {[%emt 0:00:35]} Kf8 {[%emt 0:00:25]} 30. Rd8+ {[%emt 0:02:17]} Qxd8 {[%emt 0:01:14]} 31. Qxh8+ {[%emt 0:00:07]} Ke7 {[%emt 0:00:15]} 32. Qf6+ {[%emt 0:00:38]} 1-0